[Event "Teplice Open 2019"]
[Site "Teplice"]
[Date "2019.06.22"]
[Round "8.5"]
[White "Vorobiov, Evgeny E."]
[Black "Greenfeld, Alon"]
[Result "1-0"]
[ECO "D22"]
[WhiteElo "2556"]
[BlackElo "2513"]
[Annotator "ChessBase"]
[PlyCount "175"]
[EventDate "2019.06.15"]
[EventType "swiss"]
[EventCountry "CZE"]
[SourceTitle "playchess.com"]
[Source "ChessBase"]
[SourceQuality "1"]
[TimeControl "40/5400+30:1800+30"]

1. d4 {[%emt 0:00:00]} d5 {[%emt 0:02:39]} 2. c4 {[%emt 0:00:00]} dxc4 {[%emt 0:01:01]} 3. Nf3 {[%emt 0:00:34]} a6 {[%emt 0:00:27]} 4. e3 {[%emt 0:00:33]} Bg4 {[%emt 0:00:22]} 5. Nc3 {[%emt 0:03:49]} e6 {[%emt 0:28:07]} 6. h3 {[%emt 0:01:02]} Bh5 {[%emt 0:00:37]} 7. g4 {[%emt 0:00:41]} Bg6 {[%emt 0:00:05]} 8. Ne5 {[%emt 0:00:09]} Ne7 {[%emt 0:07:17]} 9. Bxc4 {[%emt 0:17:00]} Nd7 {[%emt 0:02:07]} 10. Nxg6 {[%emt 0:02:19]} Nxg6 {[%emt 0:00:07]} 11. Qf3 {[%emt 0:00:59]} b5 {[%emt 0:04:23]} 12. Bb3 {[%emt 0:03:09]} Be7 {[%emt 0:10:03]} 13. Qc6 {[%emt 0:15:24]} Rb8 {[%emt 0:06:15]} 14. Bd2 {[%emt 0:18:04]} Rb6 {[%emt 0:00:54]} 15. Qg2 {[%emt 0:00:17]} c5 {[%emt 0:01:50]} 16. Rd1 {[%emt 0:00:15]} cxd4 {[%emt 0:09:13]} 17. exd4 {[%emt 0:00:20]} Bg5 {[%emt 0:00:54]} 18. Be3 {[%emt 0:05:50]} h5 {[%emt 0:07:50]} 19. Ne4 {[%emt 0:03:35]} Bf4 {[%emt 0:04:51]} 20. Bxf4 {[%emt 0:09:48]} Nxf4 {[%emt 0:00:03]} 21. Qf3 {[%emt 0:00:06]} Qb8 {[%emt 0:01:46]} 22. Rg1 {[%emt 0:05:28]} hxg4 {[%emt 0:05:27]} 23. Rxg4 {[%emt 0:00:20]} Ng6 {[%emt 0:01:53]} 24. Rxg6 {[%emt 0:07:10]} fxg6 {[%emt 0:00:08]} 25. Qg4 {[%emt 0:02:29]} Nf8 {[%emt 0:01:35]} 26. d5 {[%emt 0:00:54]} Qe5 {[%emt 0:00:34]} 27. dxe6 {[%emt 0:00:30]} Nxe6 {[%emt 0:00:26]} 28. Kf1 {[%emt 0:02:28]} Ke7 {[%emt 0:00:40]} 29. Re1 {[%emt 0:00:24]} Qf5 {[%emt 0:00:19]} 30. Qxf5 {[%emt 0:00:42]} gxf5 {[%emt 0:00:02]} 31. Ng5 {[%emt 0:00:26]} Kf6 {[%emt 0:00:31]} 32. Nxe6 {[%emt 0:00:19]} Rxh3 {[%emt 0:00:05]} 33. Kg2 {[%emt 0:00:51]} Rxb3 {[%emt 0:01:46]} 34. Nc5 {[%emt 0:00:09]} Rxb2 {[%emt 0:00:18]} 35. Nd7+ {[%emt 0:00:01]} Kf7 {[%emt 0:01:42]} 36. Nxb6 {[%emt 0:00:03]} Rxa2 {[%emt 0:00:05]} 37. Nd5 {[%emt 0:00:16]} a5 {[%emt 0:00:58]} 38. Re7+ {[%emt 0:01:05]} Kg6 {[%emt 0:00:16]} 39. Re6+ {[%emt 0:00:19]} Kf7 {[%emt 0:00:29]} 40. Re7+ {[%emt 0:00:08]} Kg6 {[%emt 0:00:05]} 41. Ra7 {[%emt 0:10:06]} Ra3 {[%emt 0:00:46]} 42. Ra6+ {[%emt 0:03:49]} Kh5 {[%emt 0:10:18]} 43. Ne7 {[%emt 0:08:54]} f4 {[%emt 0:00:48]} 44. Rg6 {[%emt 0:04:16]} Rd3 {[%emt 0:09:55]} 45. Rxg7 {[%emt 0:00:11]} a4 {[%emt 0:01:42]} 46. Rf7 {[%emt 0:03:14]} Rd7 {[%emt 0:08:50]} 47. Kf3 {[%emt 0:00:26]} Kg5 {[%emt 0:01:17]} 48. Rf5+ {[%emt 0:02:26]} Kh6 {[%emt 0:00:01]} 49. Nc6 {[%emt 0:02:02]} Rc7 {[%emt 0:00:27]} 50. Nb4 {[%emt 0:00:39]} Rc3+ {[%emt 0:00:20]} 51. Kg4 {[%emt 0:00:07]} Rb3 {[%emt 0:00:23]} 52. Rxb5 {[%emt 0:01:09]} a3 {[%emt 0:00:10]} 53. f3 {[%emt 0:00:29]} a2 {[%emt 0:00:43]} 54. Rh5+ {[%emt 0:00:20]} Kg6 {[%emt 0:00:22]} 55. Rg5+ {[%emt 0:00:27]} Kf6 {[%emt 0:01:06]} 56. Nxa2 {[%emt 0:00:34]} Rxf3 {[%emt 0:00:11]} 57. Ra5 {[%emt 0:00:14]} Rb3 {[%emt 0:00:53]} 58. Nc1 {[%emt 0:00:24]} Rg3+ {[%emt 0:01:10]} 59. Kxf4 {[%emt 0:00:08]} Rc3 {[%emt 0:00:10]} 60. Ra6+ {[%emt 0:00:10]} Ke7 {[%emt 0:00:09]} 61. Ne2 {[%emt 0:00:15]} Rd3 {[%emt 0:00:32]} 62. Ng3 {[%emt 0:00:26]} Kd7 {[%emt 0:00:35]} 63. Ne4 {[%emt 0:00:10]} Kc7 {[%emt 0:00:11]} 64. Ke5 {[%emt 0:00:06]} Rh3 {[%emt 0:00:20]} 65. Nf6 {[%emt 0:00:17]} Rh1 {[%emt 0:00:31]} 66. Nd5+ {[%emt 0:00:08]} Kb7 {[%emt 0:00:45]} 67. Rb6+ {[%emt 0:00:09]} Ka7 {[%emt 0:01:09]} 68. Rb2 {[%emt 0:00:11]} Rh5+ {[%emt 0:01:02]} 69. Kd6 {[%emt 0:00:09]} Rh6+ {[%emt 0:00:16]} 70. Kc5 {[%emt 0:00:20]} Rh5 {[%emt 0:00:17]} 71. Rb1 {[%emt 0:00:18]} Ka6 {[%emt 0:00:36]} 72. Rg1 {[%emt 0:00:37]} Kb7 {[%emt 0:00:36]} 73. Rg6 {[%emt 0:00:21]} Rh7 {[%emt 0:00:49]} 74. Rf6 {[%emt 0:01:07]} Rg7 {[%emt 0:00:57]} 75. Ne3 {[%emt 0:01:18]} Rh7 {[%emt 0:00:13]} 76. Rb6+ {[%emt 0:01:09]} Ka7 {[%emt 0:00:12]} 77. Nd5 {[%emt 0:00:16]} Rc7+ {[%emt 0:00:38]} 78. Kd6 {[%emt 0:00:25]} Rb7 {[%emt 0:00:09]} 79. Rc6 {[%emt 0:00:10]} Rh7 {[%emt 0:00:02]} 80. Nf6 {[%emt 0:00:26]} Rb7 {[%emt 0:00:38]} 81. Nd7 {[%emt 0:00:31]} Rb1 {[%emt 0:00:19]} 82. Kc7 {[%emt 0:02:02]} Ra1 {[%emt 0:00:57]} 83. Nb8 {[%emt 0:01:25]} Ka8 {[%emt 0:00:42]} 84. Kc8 {[%emt 0:00:26]} Ka7 {[%emt 0:00:10]} 85. Kc7 {[%emt 0:00:37]} Ka8 {[%emt 0:00:58]} 86. Rc2 {[%emt 0:00:09]} Ra7+ {[%emt 0:00:25]} 87. Kc8 {[%emt 0:00:07]} Rh7 {[%emt 0:00:59]} 88. Nd7 {[%emt 0:00:18]} 1-0

[Event "Teplice Open 2019"]
[Site "Teplice"]
[Date "2019.06.22"]
[Round "8.6"]
[White "Salomon, Johan"]
[Black "Stocek, Jiri"]
[Result "1/2-1/2"]
[ECO "E17"]
[WhiteElo "2509"]
[BlackElo "2551"]
[Annotator "ChessBase"]
[PlyCount "93"]
[EventDate "2019.06.15"]
[EventType "swiss"]
[EventCountry "CZE"]
[SourceTitle "playchess.com"]
[Source "ChessBase"]
[SourceQuality "1"]
[TimeControl "40/5400+30:1800+30"]

1. Nf3 {[%emt 0:00:00]} Nf6 {[%emt 0:05:27]} 2. c4 {[%emt 0:00:05]} b6 {[%emt 0:02:14]} 3. g3 {[%emt 0:00:27]} Bb7 {[%emt 0:00:30]} 4. Bg2 {[%emt 0:00:13]} e6 {[%emt 0:01:07]} 5. O-O {[%emt 0:00:45]} Be7 {[%emt 0:01:39]} 6. d4 {[%emt 0:00:13]} O-O {[%emt 0:00:12]} 7. Nc3 {[%emt 0:04:14]} Na6 {[%emt 0:02:01]} 8. d5 {[%emt 0:01:48]} Bb4 {[%emt 0:02:10]} 9. Nd4 {[%emt 0:09:56]} Bxc3 {[%emt 0:03:26]} 10. bxc3 {[%emt 0:00:08]} Nc5 {[%emt 0:00:18]} 11. Nb3 {[%emt 0:05:43]} Rb8 {[%emt 0:07:03]} 12. Nxc5 {[%emt 0:05:22]} bxc5 {[%emt 0:00:40]} 13. e4 {[%emt 0:00:33]} d6 {[%emt 0:01:45]} 14. Bg5 {[%emt 0:23:15]} exd5 {[%emt 0:15:05]} 15. cxd5 {[%emt 0:01:17]} Ba6 {[%emt 0:01:38]} 16. Re1 {[%emt 0:01:54]} h6 {[%emt 0:00:12]} 17. Bf4 {[%emt 0:01:30]} Nd7 {[%emt 0:00:57]} 18. Qg4 {[%emt 0:09:44]} Ne5 {[%emt 0:01:43]} 19. Bxe5 {[%emt 0:00:47]} dxe5 {[%emt 0:00:06]} 20. Bf1 {[%emt 0:04:14]} Bc8 {[%emt 0:01:52]} 21. Qe2 {[%emt 0:02:00]} Qd6 {[%emt 0:03:04]} 22. Rab1 {[%emt 0:02:10]} Bd7 {[%emt 0:07:42]} 23. Rb3 {[%emt 0:02:41]} Rxb3 {[%emt 0:14:03]} 24. axb3 {[%emt 0:00:45]} Rb8 {[%emt 0:00:31]} 25. Qc2 {[%emt 0:03:29]} a5 {[%emt 0:01:09]} 26. Ra1 {[%emt 0:00:23]} Qb6 {[%emt 0:00:40]} 27. Bc4 {[%emt 0:02:26]} Ra8 {[%emt 0:03:31]} 28. Qd1 {[%emt 0:01:10]} g6 {[%emt 0:04:35]} 29. Ra2 {[%emt 0:03:19]} Bb5 {[%emt 0:01:02]} 30. Bxb5 {[%emt 0:00:48]} Qxb5 {[%emt 0:00:05]} 31. Ra4 {[%emt 0:01:34]} Ra6 {[%emt 0:02:34]} 32. c4 {[%emt 0:00:37]} Qd7 {[%emt 0:04:20]} 33. Kg2 {[%emt 0:01:05]} h5 {[%emt 0:03:47]} 34. h4 {[%emt 0:02:18]} f5 {[%emt 0:02:11]} 35. Qa1 {[%emt 0:03:15]} fxe4 {[%emt 0:01:46]} 36. Qxe5 {[%emt 0:00:49]} Qf5 {[%emt 0:01:45]} 37. Qe8+ {[%emt 0:00:22]} Kg7 {[%emt 0:00:37]} 38. Qe7+ {[%emt 0:00:07]} Kg8 {[%emt 0:00:55]} 39. Qe8+ {[%emt 0:02:00]} Kg7 {[%emt 0:00:06]} 40. Qe7+ {[%emt 0:00:08]} Kg8 {[%emt 0:00:24]} 41. Qxc5 {[%emt 0:32:12]} Qf3+ {[%emt 0:05:14]} 42. Kh2 {[%emt 0:00:00]} Qxb3 {[%emt 0:01:21]} 43. Qxc7 {[%emt 0:00:00]} Qc2 {[%emt 0:01:52]} 44. Qd8+ {[%emt 0:00:00]} Kf7 {[%emt 0:08:51]} 45. Qd7+ {[%emt 0:00:00]} Kf8 {[%emt 0:01:33]} 46. Qd8+ {[%emt 0:00:00]} Kf7 {[%emt 0:00:06]} 47. Qd7+ {[%emt 0:00:00]} 1/2-1/2

[Event "Teplice Open 2019"]
[Site "Teplice"]
[Date "2019.06.22"]
[Round "8.9"]
[White "Lagarde, Maxime"]
[Black "Blohberger, Felix"]
[Result "1-0"]
[ECO "B70"]
[WhiteElo "2599"]
[BlackElo "2475"]
[Annotator "RC"]
[PlyCount "79"]
[EventDate "2019.06.15"]
[EventType "swiss"]
[EventCountry "CZE"]
[SourceTitle "playchess.com"]
[Source "ChessBase"]
[SourceQuality "1"]
[TimeControl "40/5400+30:1800+30"]

1. e4 {[%emt 0:00:58]} c5 {[%emt 0:00:00]} 2. Nc3 {[%emt 0:00:55]} d6 {[%emt 0:00:02]} 3. Nge2 {[%emt 0:01:34]} Nf6 {[%emt 0:00:36]} 4. g3 {[%emt 0:02:15]} Nc6 {[%emt 0:00:29]} 5. Bg2 {[%emt 0:00:57]} g6 {[%emt 0:00:52]} 6. d4 {[%emt 0:02:48]} cxd4 {[%emt 0:00:24]} 7. Nxd4 {[%emt 0:00:05]} Nxd4 {[%emt 0:01:00]} 8. Qxd4 {[%emt 0:00:16]} Bg7 {[%emt 0:00:07]} 9. b3 {[%emt 0:08:23]} Be6 {[%emt 0:18:34]} 10. Bb2 {[%emt 0:01:04]} Qa5 {[%emt 0:04:21]} 11. Qa4+ {[%emt 0:05:54]} Qxa4 {[%emt 0:00:36]} 12. Nxa4 {[%emt 0:00:38]} O-O {[%emt 0:14:34]} 13. e5 {[%emt 0:00:45]} dxe5 {[%emt 0:04:29]} 14. Bxe5 {[%emt 0:00:24]} Bd5 {[%emt 0:02:38]} 15. Bxd5 {[%emt 0:00:35]} Nxd5 {[%emt 0:00:06]} 16. Bxg7 {[%emt 0:00:09]} Kxg7 {[%emt 0:00:04]} 17. O-O-O {[%emt 0:02:45]} Rfd8 {[%emt 0:01:16]} 18. Kb2 {[%emt 0:15:27]} Rac8 {[%emt 0:03:11]} 19. c4 {[%emt 0:02:32]} Nb4 {[%emt 0:03:19]} 20. f4 {[%emt 0:04:01]} e5 {[%emt 0:07:16]} 21. fxe5 {[%emt 0:02:13]} Nd3+ {[%emt 0:00:33]} 22. Kc3 {[%emt 0:00:45]} Nxe5 {[%emt 0:00:12]} 23. Rxd8 {[%emt 0:00:33]} Rxd8 {[%emt 0:00:08]} 24. Re1 {[%emt 0:00:25]} f6 {[%emt 0:09:26]} 25. Nc5 {[%emt 0:02:06]} Rb8 {[%emt 0:01:06]} 26. Nd7 {[%emt 0:09:39]} Nxd7 {[%emt 0:03:16]} 27. Re7+ {[%emt 0:00:06]} Kh6 {[%emt 0:00:05]} 28. Rxd7 {[%emt 0:00:05]} g5 {[%emt 0:00:12]} 29. c5 {[%emt 0:03:29]} Kg6 {[%emt 0:00:08]} 30. b4 {[%emt 0:08:21]} h5 {[%emt 0:01:34]} 31. Kd4 {[%emt 0:01:11]} Kf5 {[%emt 0:03:51]} 32. Kd5 {[%emt 0:00:25]} Kg4 {[%emt 0:00:37]} 33. Kd6 {[%emt 0:03:44]} Kh3 {[%emt 0:00:19]} 34. Kc7 {[%emt 0:00:11]} Rf8 {[%emt 0:04:24]} 35. Kxb7 {[%emt 0:00:13]} Kxh2 {[%emt 0:00:06]} 36. c6 {[%emt 0:00:24]} Kxg3 {[%emt 0:02:48]} 37. c7 {[%emt 0:00:18]} h4 {[%emt 0:00:35]} 38. c8=Q {[%emt 0:01:55]} Rxc8 {[%emt 0:00:06]} 39. Kxc8 {[%emt 0:00:03]} h3 {[%emt 0:01:47]} 40. Rxa7 {[%emt 0:00:56]} 1-0

[Event "Teplice Open 2019"]
[Site "Teplice"]
[Date "2019.06.22"]
[Round "8.10"]
[White "Hracek, Zbynek"]
[Black "Song, Raymond"]
[Result "1/2-1/2"]
[ECO "B18"]
[WhiteElo "2582"]
[BlackElo "2450"]
[Annotator "ChessBase"]
[PlyCount "84"]
[EventDate "2019.06.15"]
[EventType "swiss"]
[EventCountry "CZE"]
[SourceTitle "playchess.com"]
[Source "ChessBase"]
[SourceQuality "1"]
[TimeControl "40/5400+30:1800+30"]

1. e4 {[%emt 0:00:00]} c6 {[%emt 0:00:00]} 2. d4 {[%emt 0:00:00]} d5 {[%emt 0:00:00]} 3. Nc3 {[%emt 0:00:00]} dxe4 {[%emt 0:00:09]} 4. Nxe4 {[%emt 0:00:00]} Bf5 {[%emt 0:00:05]} 5. Bd3 {[%emt 0:00:06]} Qxd4 {[%emt 0:00:14]} 6. Nf3 {[%emt 0:00:06]} Qd5 {[%emt 0:02:45]} 7. c4 {[%emt 0:08:33]} Qa5+ {[%emt 0:03:07]} 8. Bd2 {[%emt 0:00:23]} Qc7 {[%emt 0:00:06]} 9. O-O {[%emt 0:03:27]} e6 {[%emt 0:01:02]} 10. Bc3 {[%emt 0:02:26]} Nd7 {[%emt 0:00:40]} 11. Neg5 {[%emt 0:09:46]} h6 {[%emt 0:11:24]} 12. Ne4 {[%emt 0:17:41]} Bxe4 {[%emt 0:07:41]} 13. Bxe4 {[%emt 0:01:12]} Ngf6 {[%emt 0:00:10]} 14. Bc2 {[%emt 0:00:07]} a5 {[%emt 0:00:30]} 15. a3 {[%emt 0:00:11]} Be7 {[%emt 0:00:41]} 16. Qe2 {[%emt 0:00:54]} a4 {[%emt 0:01:06]} 17. Rad1 {[%emt 0:01:05]} O-O {[%emt 0:00:45]} 18. Rd4 {[%emt 0:19:59]} Rfd8 {[%emt 0:02:01]} 19. g3 {[%emt 0:00:21]} c5 {[%emt 0:06:16]} 20. Rd3 {[%emt 0:13:17]} Nb6 {[%emt 0:02:01]} 21. Ne5 {[%emt 0:04:00]} Nbd7 {[%emt 0:09:44]} 22. Rfd1 {[%emt 0:01:38]} Nxe5 {[%emt 0:08:46]} 23. Bxe5 {[%emt 0:00:02]} Qc6 {[%emt 0:03:36]} 24. Rxd8+ {[%emt 0:00:32]} Rxd8 {[%emt 0:00:14]} 25. Rxd8+ {[%emt 0:00:21]} Bxd8 {[%emt 0:00:01]} 26. Qd1 {[%emt 0:00:14]} Be7 {[%emt 0:00:34]} 27. Bxa4 {[%emt 0:15:50]} Qe4 {[%emt 0:00:12]} 28. Bxf6 {[%emt 0:00:42]} Bxf6 {[%emt 0:00:07]} 29. Qc2 {[%emt 0:00:21]} Qe1+ {[%emt 0:01:35]} 30. Kg2 {[%emt 0:00:01]} Bd4 {[%emt 0:00:07]} 31. Bd7 {[%emt 0:01:07]} g5 {[%emt 0:00:36]} 32. Bc8 {[%emt 0:00:52]} b6 {[%emt 0:00:11]} 33. g4 {[%emt 0:00:37]} Qe5 {[%emt 0:00:30]} 34. Bb7 {[%emt 0:00:28]} Bxb2 {[%emt 0:01:20]} 35. a4 {[%emt 0:00:20]} Bd4 {[%emt 0:00:03]} 36. Qe4 {[%emt 0:00:35]} Qd6 {[%emt 0:00:19]} 37. Qc6 {[%emt 0:00:14]} Qf4 {[%emt 0:00:12]} 38. Qf3 {[%emt 0:00:27]} Qc1 {[%emt 0:00:02]} 39. Ba6 {[%emt 0:00:30]} Kg7 {[%emt 0:01:43]} 40. Bb5 {[%emt 0:00:05]} Qc2 {[%emt 0:00:33]} 41. h3 {[%emt 0:02:57]} Qd2 {[%emt 0:01:18]} 42. Be8 {[%emt 0:00:43]} Qf4 {[%emt 0:02:33]} 1/2-1/2

[Event "Teplice Open 2019"]
[Site "Teplice"]
[Date "2019.06.22"]
[Round "8.11"]
[White "Epishin, Vladimir"]
[Black "Krishna Teja, N."]
[Result "1-0"]
[ECO "A34"]
[WhiteElo "2564"]
[BlackElo "2357"]
[Annotator "ChessBase"]
[PlyCount "127"]
[EventDate "2019.06.15"]
[EventType "swiss"]
[EventCountry "CZE"]
[SourceTitle "playchess.com"]
[Source "ChessBase"]
[SourceQuality "1"]
[TimeControl "40/5400+30:1800+30"]

1. c4 {[%emt 0:00:00]} c5 {[%emt 0:15:28]} 2. Nf3 {[%emt 0:00:00]} Nf6 {[%emt 0:00:08]} 3. Nc3 {[%emt 0:00:31]} d5 {[%emt 0:00:34]} 4. cxd5 {[%emt 0:00:26]} Nxd5 {[%emt 0:00:03]} 5. g3 {[%emt 0:00:41]} g6 {[%emt 0:01:15]} 6. h4 {[%emt 0:00:16]} h6 {[%emt 0:02:08]} 7. Qb3 {[%emt 0:02:08]} Nb6 {[%emt 0:02:01]} 8. Ne4 {[%emt 0:01:41]} N8d7 {[%emt 0:02:42]} 9. h5 {[%emt 0:03:27]} g5 {[%emt 0:00:40]} 10. Qc3 {[%emt 0:00:20]} Rg8 {[%emt 0:06:00]} 11. Nxc5 {[%emt 0:10:26]} Bg7 {[%emt 0:00:13]} 12. Qa5 {[%emt 0:02:26]} Nxc5 {[%emt 0:11:21]} 13. Qxc5 {[%emt 0:00:10]} Bg4 {[%emt 0:00:36]} 14. Bg2 {[%emt 0:05:45]} Rc8 {[%emt 0:00:06]} 15. Qa3 {[%emt 0:01:47]} Rc2 {[%emt 0:03:36]} 16. O-O {[%emt 0:02:43]} a6 {[%emt 0:02:29]} 17. Ne1 {[%emt 0:14:31]} Rc7 {[%emt 0:06:08]} 18. Bf3 {[%emt 0:03:16]} Nc4 {[%emt 0:01:49]} 19. Qb4 {[%emt 0:02:14]} a5 {[%emt 0:02:36]} 20. Qb3 {[%emt 0:03:13]} Be6 {[%emt 0:00:27]} 21. Qa4+ {[%emt 0:00:22]} Bd7 {[%emt 0:00:23]} 22. Qd1 {[%emt 0:00:21]} b5 {[%emt 0:06:22]} 23. Rb1 {[%emt 0:01:12]} Ne5 {[%emt 0:00:07]} 24. Bg2 {[%emt 0:00:37]} Bg4 {[%emt 0:01:08]} 25. d3 {[%emt 0:00:34]} Bxh5 {[%emt 0:00:47]} 26. Bd2 {[%emt 0:00:03]} Rd7 {[%emt 0:02:33]} 27. Bc3 {[%emt 0:01:44]} Kf8 {[%emt 0:03:11]} 28. a3 {[%emt 0:01:08]} Qb6 {[%emt 0:02:40]} 29. Rc1 {[%emt 0:06:38]} Bf6 {[%emt 0:01:21]} 30. Qd2 {[%emt 0:03:38]} Nc4 {[%emt 0:05:39]} 31. Qc2 {[%emt 0:00:06]} Ne5 {[%emt 0:01:21]} 32. e3 {[%emt 0:06:28]} Kg7 {[%emt 0:04:18]} 33. d4 {[%emt 0:01:51]} Nc4 {[%emt 0:00:20]} 34. Nd3 {[%emt 0:00:08]} Bg6 {[%emt 0:01:02]} 35. Qe2 {[%emt 0:00:18]} Bxd3 {[%emt 0:02:36]} 36. Qxd3 {[%emt 0:02:51]} Rgd8 {[%emt 0:00:17]} 37. a4 {[%emt 0:03:52]} Rc7 {[%emt 0:03:06]} 38. b3 {[%emt 0:09:36]} Nd6 {[%emt 0:00:41]} 39. Qd2 {[%emt 0:03:02]} b4 {[%emt 0:03:25]} 40. Bb2 {[%emt 0:00:04]} Ne8 {[%emt 0:00:19]} 41. Rxc7 {[%emt 0:30:32]} Nxc7 {[%emt 0:30:02]} 42. Rc1 {[%emt 0:00:44]} Nd5 {[%emt 0:05:45]} 43. Rc5 {[%emt 0:01:26]} e6 {[%emt 0:01:30]} 44. Qc2 {[%emt 0:00:25]} Ne7 {[%emt 0:00:42]} 45. Be4 {[%emt 0:02:36]} Rd7 {[%emt 0:00:00]} 46. Qc4 {[%emt 0:00:00]} Ra7 {[%emt 0:00:00]} 47. Bc2 {[%emt 0:00:00]} Kf8 {[%emt 0:00:00]} 48. e4 {[%emt 0:00:00]} Ke8 {[%emt 0:00:00]} 49. Bc1 {[%emt 0:00:00]} Kd7 {[%emt 0:00:00]} 50. Be3 {[%emt 0:00:00]} Rc7 {[%emt 0:00:00]} 51. d5 {[%emt 0:00:00]} Rxc5 {[%emt 0:00:00]} 52. Bxc5 {[%emt 0:00:00]} Qb7 {[%emt 0:00:00]} 53. dxe6+ {[%emt 0:00:00]} fxe6 {[%emt 0:00:00]} 54. Bd4 {[%emt 0:00:00]} Bxd4 {[%emt 0:00:00]} 55. Qxd4+ {[%emt 0:00:00]} Ke8 {[%emt 0:00:00]} 56. Qh8+ {[%emt 0:00:00]} Kd7 {[%emt 0:00:00]} 57. Bd3 {[%emt 0:00:00]} Qb6 {[%emt 0:00:00]} 58. Bb5+ {[%emt 0:00:00]} Kd6 {[%emt 0:00:00]} 59. e5+ {[%emt 0:00:00]} Kd5 {[%emt 0:00:42]} 60. Bc4+ {[%emt 0:00:00]} Ke4 {[%emt 0:00:13]} 61. Qxh6 {[%emt 0:00:24]} Qd4 {[%emt 0:02:35]} 62. Qh7+ {[%emt 0:06:52]} Nf5 {[%emt 0:02:41]} 63. Bxe6 {[%emt 0:00:31]} Qxe5 {[%emt 0:00:07]} 64. Qg6 {[%emt 0:01:37]} 1-0

[Event "Teplice Open 2019"]
[Site "Teplice"]
[Date "2019.06.22"]
[Round "8.12"]
[White "Ankit, R. Rajpara"]
[Black "Dastan, Muhammed Batuhan"]
[Result "0-1"]
[ECO "A88"]
[WhiteElo "2447"]
[BlackElo "2561"]
[Annotator "ChessBase"]
[PlyCount "86"]
[EventDate "2019.06.15"]
[EventType "swiss"]
[EventCountry "CZE"]
[SourceTitle "playchess.com"]
[Source "ChessBase"]
[SourceQuality "1"]
[TimeControl "40/5400+30:1800+30"]

1. d4 {[%emt 0:00:00]} f5 {[%emt 0:00:00]} 2. g3 {[%emt 0:00:00]} Nf6 {[%emt 0:00:00]} 3. Bg2 {[%emt 0:00:00]} g6 {[%emt 0:00:00]} 4. Nf3 {[%emt 0:00:19]} Bg7 {[%emt 0:00:00]} 5. c4 {[%emt 0:00:13]} O-O {[%emt 0:00:00]} 6. O-O {[%emt 0:00:09]} d6 {[%emt 0:00:05]} 7. Nc3 {[%emt 0:00:11]} c6 {[%emt 0:00:04]} 8. b3 {[%emt 0:00:34]} Na6 {[%emt 0:00:07]} 9. Bb2 {[%emt 0:00:26]} Qe8 {[%emt 0:00:16]} 10. Re1 {[%emt 0:01:15]} e5 {[%emt 0:01:20]} 11. e4 {[%emt 0:17:29]} f4 {[%emt 0:01:12]} 12. Ba3 {[%emt 0:29:11]} fxg3 {[%emt 0:44:03]} 13. hxg3 {[%emt 0:00:40]} Bg4 {[%emt 0:07:29]} 14. Bxd6 {[%emt 0:07:26]} Nh5 {[%emt 0:00:05]} 15. Bxe5 {[%emt 0:17:22]} Bxe5 {[%emt 0:14:09]} 16. dxe5 {[%emt 0:00:05]} Nxg3 {[%emt 0:04:05]} 17. fxg3 {[%emt 0:06:16]} Bxf3 {[%emt 0:00:05]} 18. Bxf3 {[%emt 0:00:20]} Qxe5 {[%emt 0:00:04]} 19. Nd5 {[%emt 0:11:06]} cxd5 {[%emt 0:13:47]} 20. Kg2 {[%emt 0:00:25]} d4 {[%emt 0:00:14]} 21. a3 {[%emt 0:02:52]} Nc5 {[%emt 0:00:49]} 22. b4 {[%emt 0:01:01]} Ne6 {[%emt 0:00:23]} 23. Qd3 {[%emt 0:02:07]} Qg5 {[%emt 0:04:49]} 24. Kh2 {[%emt 0:00:48]} Qe5 {[%emt 0:03:25]} 25. Rf1 {[%emt 0:00:29]} h5 {[%emt 0:01:01]} 26. Kg2 {[%emt 0:01:43]} Qg5 {[%emt 0:01:27]} 27. Kh2 {[%emt 0:00:15]} h4 {[%emt 0:00:49]} 28. Bg2 {[%emt 0:00:19]} Qe5 {[%emt 0:01:04]} 29. Bh3 {[%emt 0:00:56]} Ng5 {[%emt 0:00:17]} 30. Bg2 {[%emt 0:00:09]} Kg7 {[%emt 0:00:17]} 31. Rad1 {[%emt 0:00:41]} hxg3+ {[%emt 0:00:20]} 32. Kg1 {[%emt 0:00:04]} Rxf1+ {[%emt 0:00:30]} 33. Rxf1 {[%emt 0:00:17]} Rh8 {[%emt 0:01:59]} 34. c5 {[%emt 0:00:24]} Ne6 {[%emt 0:00:46]} 35. Qb5 {[%emt 0:00:32]} Nf4 {[%emt 0:01:55]} 36. Qd7+ {[%emt 0:00:58]} Kh6 {[%emt 0:00:04]} 37. Qg4 {[%emt 0:00:28]} Rf8 {[%emt 0:00:13]} 38. b5 {[%emt 0:00:58]} d3 {[%emt 0:00:03]} 39. Kh1 {[%emt 0:00:30]} Kg7 {[%emt 0:01:34]} 40. Qd7+ {[%emt 0:00:28]} Rf7 {[%emt 0:00:12]} 41. Qg4 {[%emt 0:30:15]} Rf8 {[%emt 0:30:56]} 42. Qd7+ {[%emt 0:00:24]} Rf7 {[%emt 0:00:05]} 43. Qg4 {[%emt 0:00:00]} Qxc5 {[%emt 0:00:00]} 0-1

[Event "Teplice Open 2019"]
[Site "Teplice"]
[Date "2019.06.22"]
[Round "8.13"]
[White "Babula, Vlastimil"]
[Black "Kostolansky, Sebastian Lukas"]
[Result "1/2-1/2"]
[ECO "E97"]
[WhiteElo "2550"]
[BlackElo "2379"]
[Annotator "ChessBase"]
[PlyCount "60"]
[EventDate "2019.06.15"]
[EventType "swiss"]
[EventCountry "CZE"]
[SourceTitle "playchess.com"]
[Source "ChessBase"]
[SourceQuality "1"]
[TimeControl "40/5400+30:1800+30"]

1. d4 {[%emt 0:00:00]} Nf6 {[%emt 0:00:00]} 2. c4 {[%emt 0:00:00]} g6 {[%emt 0:00:22]} 3. Nc3 {[%emt 0:00:00]} Bg7 {[%emt 0:00:05]} 4. e4 {[%emt 0:00:13]} d6 {[%emt 0:00:05]} 5. Nf3 {[%emt 0:00:18]} O-O {[%emt 0:00:31]} 6. Be2 {[%emt 0:00:11]} Nc6 {[%emt 0:01:00]} 7. O-O {[%emt 0:00:58]} e5 {[%emt 0:00:06]} 8. d5 {[%emt 0:00:33]} Ne7 {[%emt 0:00:51]} 9. b4 {[%emt 0:00:30]} Nh5 {[%emt 0:00:30]} 10. g3 {[%emt 0:01:19]} f5 11. Ng5 Nf6 12. Bf3 {[%emt 0:00:29]} fxe4 {[%emt 0:01:34]} 13. Ngxe4 {[%emt 0:03:45]} Nxe4 {[%emt 0:11:53]} 14. Nxe4 {[%emt 0:09:06]} Nf5 15. Bg5 Qe8 16. Rc1 a5 17. a3 axb4 18. axb4 Qa4 19. Ra1 Qxd1 20. Rfxd1 Bd7 21. Bg2 h6 22. Rxa8 Rxa8 23. Bd2 Nd4 24. h3 {[%emt 0:00:00]} Kf7 {[%emt 0:10:14]} 25. g4 {[%emt 1:58:46]} Ra2 26. b5 {[%emt 0:00:00]} b6 {[%emt 0:54:52]} 27. Kh2 {[%emt 0:27:46]} Ra4 28. Bf1 Ke7 29. Bd3 Nf3+ 30. Kg2 Nxd2 {[%emt 0:12:16]} 1/2-1/2